Workbook

Sheet Dashboard
A1: Total Sent: | D1: 1502 | F1: Left process at stage 1: | J1: 614 | L1: Left process at stage 2: | P1: 48 | R1: Exited process: | V1: 380 | X1: Settled: | AA1: 343
A3: Δ from last month: | D3: -721 | F3: Δ from last month: | J3: -378 | L3: Δ from last month: | P3: -22 | R3: Δ from last month: | V3: -204 | X3: Δ from last month: | AA3: -40
A5: Rolling 12 months: | D5: 14860 | F5: Rolling 12 months: | J5: 9529 | L5: Rolling 12 months: | P5: 657 | R5: Rolling 12 months: | V5: 4718 | X5: Rolling 12 months: | AA5: 4205
A7: Left Process Breakdowns - Stage 1:
A9: Reason | H9: This Month | J9: Last Month | L9: Δ
A10: Liability Decision Timeout | H10: 431 | J10: 797 | L10: -366
A11: Other | H11: 183 | J11: 195 | L11: -12
A12: Total | H12: 614 | J12: 992 | L12: -378
A13: Left Process Breakdowns - Stage 2:
A15: Reason | H15: This Month | J15: Last Month | L15: Δ
A16: Interim payment more than £1,000 not agreed: | H16: 0 | J16: 1 | L16: -1
A17: Settlement pack repudiated: | H17: 0 | J17: 0 | L17: 0
A18: Settlement pack timeout: | H18: 23 | J18: 25 | L18: -2
A19: No agreement; Court Proceedings pack: | H19: 25 | J19: 44 | L19: -19
A20: Total | H20: 48 | J20: 70 | L20: -22

Sheet Backing Sheet Data (hidden)
A1: Reporting date | B1: 2021-02-01
A2: Previous month | B2: =EDATE(B1,-1) -> 2021-01-01 | S2: =SUBTOTAL(9,tblRTABackingData[CNFs Sent]) -> 287056 | T2: =SUBTOTAL(9,tblRTABackingData[CNFs left at Stage 1]) -> 145856 | U2: =SUBTOTAL(9,tblRTABackingData[Stage 2 Exit]) -> 4362 | V2: =SUBTOTAL(9,tblRTABackingData[Exit process]) -> 64549 | W2: =SUBTOTAL(9,tblRTABackingData[Court Pack]) -> 4163 | X2: =SUBTOTAL(9,tblRTABackingData[Settled claims]) -> 48587 | Y2: =SUBTOTAL(9,tblRTABackingData[General Damages]) -> 353714.9275
R3: Period | S3: CNFs Sent | T3: CNFs left at Stage 1 | U3: Stage 2 Exit | V3: Exit process | W3: Court Pack | X3: Settled claims | Y3: General Damages | AA3: Period | AB3: Rolling 12 CNF Sent | AC3: Rolling 12 CNF Left at Stage 1 | AD3: Rolling 12 Stage 2 Exit | AE3: Rolling 12 Exit Process | AF3: Rolling 12 Court Pack | AG3: Rolling 12 Settled Claims | AI3: Period | AJ3: CNFs Sent | AK3: CNFs left at Stage 1 | AL3: Stage 2 Exit | AM3: Exit process | AN3: Court Pack | AO3: Settled claims | AP3: General Damages
A4: Rolling 12 CNFs sent | E4: Average General Damages chart data | I4: Left Process Breakdown | R4: 2013-08-01 | S4: 206 | T4: 5 | U4: 0 | V4: 13 | W4: 0 | X4: 1 | Y4: 1500 | AA4: 2013-08-01 | AI4: 2013-08-01 | AJ4: 207 | AK4: 5 | AL4: 0 | AM4: 13 | AN4: 0 | AO4: 1 | AP4: 1500
R5: 2013-09-01 | S5: 919 | T5: 53 | U5: 0 | V5: 54 | W5: 0 | X5: 2 | Y5: 2051 | AA5: 2013-09-01 | AI5: 2013-09-01 | AJ5: 922 | AK5: 53 | AL5: 0 | AM5: 54 | AN5: 0 | AO5: 2 | AP5: 2051
A6: Period | B6: Rolling 12 Sent | E6: Row Labels | F6: Ave General Damages | I6: This Month LDT | J6: This Month Other Liability | K6: This Month Interim Payment Not Agreed | L6: This Month Repudiated | M6: This Month Timeout | N6: This Month Court Proceedings | R6: 2013-10-01 | S6: 1872 | T6: 321 | U6: 0 | V6: 134 | W6: 0 | X6: 16 | Y6: 1721.875 | AA6: 2013-10-01 | AI6: 2013-10-01 | AJ6: 1876 | AK6: 321 | AL6: 0 | AM6: 134 | AN6: 0 | AO6: 16 | AP6: 1721.875
A7: 2020-03-01 | B7: 43238 | E7: 2020-03-01 | F7: 4561.282187 | I7: 431 | J7: 183 | K7: 0 | L7: 0 | M7: 23 | N7: 25 | R7: 2013-11-01 | S7: 2246 | T7: 633 | U7: 1 | V7: 159 | W7: 0 | X7: 29 | Y7: 2277.084482 | AA7: 2013-11-01 | AI7: 2013-11-01 | AJ7: 2258 | AK7: 633 | AL7: 1 | AM7: 159 | AN7: 0 | AO7: 29 | AP7: 2277.084482
A8: 2020-04-01 | B8: 41665 | E8: 2020-04-01 | F8: 4440.518785 | R8: 2013-12-01 | S8: 1983 | T8: 822 | U8: 6 | V8: 166 | W8: 0 | X8: 47 | Y8: 2127.134468 | AA8: 2013-12-01 | AI8: 2013-12-01 | AJ8: 1997 | AK8: 822 | AL8: 6 | AM8: 166 | AN8: 0 | AO8: 47 | AP8: 2127.134468
A9: 2020-05-01 | B9: 39625 | E9: 2020-05-01 | F9: 4845.878286 | I9: CNF Sent Monthly Volumes Chart Data | R9: 2014-01-01 | S9: 3182 | T9: 1113 | U9: 5 | V9: 264 | W9: 0 | X9: 110 | Y9: 2256.937727 | AA9: 2014-01-01 | AI9: 2014-01-01 | AJ9: 3201 | AK9: 1113 | AL9: 5 | AM9: 264 | AN9: 0 | AO9: 110 | AP9: 2256.937727
A10: 2020-06-01 | B10: 38215 | E10: 2020-06-01 | F10: 4815.421005 | R10: 2014-02-01 | S10: 3160 | T10: 1061 | U10: 10 | V10: 304 | W10: 2 | X10: 145 | Y10: 2444.028551 | AA10: 2014-02-01 | AI10: 2014-02-01 | AJ10: 3185 | AK10: 1061 | AL10: 10 | AM10: 304 | AN10: 2 | AO10: 145 | AP10: 2444.028551
A11: 2020-07-01 | B11: 36557 | E11: 2020-07-01 | F11: 4834.003425 | I11: Sum of ClaimCount | J11: Column Labels | R11: 2014-03-01 | S11: 3559 | T11: 1491 | U11: 16 | V11: 336 | W11: 1 | X11: 178 | Y11: 2542.023876 | AA11: 2014-03-01 | AI11: 2014-03-01 | AJ11: 3588 | AK11: 1491 | AL11: 16 | AM11: 336 | AN11: 1 | AO11: 178 | AP11: 2542.023876
A12: 2020-08-01 | B12: 35178 | E12: 2020-08-01 | F12: 4532.266926 | I12: Row Labels | J12: RTA | K12: PL | L12: ELD | M12: EL | O12: Grand Total | R12: 2014-04-01 | S12: 3530 | T12: 1598 | U12: 23 | V12: 434 | W12: 8 | X12: 213 | Y12: 2705.480422 | AA12: 2014-04-01 | AI12: 2014-04-01 | AJ12: 3555 | AK12: 1598 | AL12: 23 | AM12: 434 | AN12: 8 | AO12: 213 | AP12: 2705.480422
A13: 2020-09-01 | B13: 34605 | E13: 2020-09-01 | F13: 5023.864037 | I13: 2020-03-01 | J13: 49232 | K13: 2586 | L13: 192 | M13: 1798 | N13: 3460 | O13: 57268 | R13: 2014-05-01 | S13: 3643 | T13: 1642 | U13: 27 | V13: 440 | W13: 5 | X13: 291 | Y13: 2969.232027 | AA13: 2014-05-01 | AI13: 2014-05-01 | AJ13: 3660 | AK13: 1642 | AL13: 27 | AM13: 440 | AN13: 5 | AO13: 291 | AP13: 2969.232027
A14: 2020-10-01 | B14: 33316 | E14: 2020-10-01 | F14: 4979.447675 | I14: 2020-04-01 | J14: 24499 | K14: 1703 | L14: 262 | M14: 1215 | N14: 2241 | O14: 29920 | R14: 2014-06-01 | S14: 3926 | T14: 1838 | U14: 36 | V14: 532 | W14: 5 | X14: 380 | Y14: 2919.278868 | AA14: 2014-06-01 | AI14: 2014-06-01 | AJ14: 3953 | AK14: 1838 | AL14: 36 | AM14: 532 | AN14: 5 | AO14: 380 | AP14: 2919.278868
A15: 2020-11-01 | B15: 31953 | E15: 2020-11-01 | F15: 4808.867023 | I15: 2020-05-01 | J15: 22866 | K15: 1378 | L15: 164 | M15: 902 | N15: 1818 | O15: 27128 | R15: 2014-07-01 | S15: 4619 | T15: 2008 | U15: 39 | V15: 645 | W15: 10 | X15: 440 | Y15: 3054.562 | AA15: 2014-07-01 | AB15: =SUM(S4:S15) -> 32845 | AC15: =SUM(T4:T15) -> 12585 | AD15: 163 | AE15: 3481 | AF15: 31 | AG15: 1852 | AI15: 2014-07-01 | AJ15: 4655 | AK15: 2008 | AL15: 39 | AM15: 645 | AN15: 10 | AO15: 440 | AP15: 3054.562
A16: 2020-12-01 | B16: 31224 | E16: 2020-12-01 | F16: 4543.048872 | I16: 2020-06-01 | J16: 32354 | K16: 1658 | L16: 162 | M16: 1064 | N16: 2235 | O16: 37473 | R16: 2014-08-01 | S16: 4010 | T16: 1903 | U16: 35 | V16: 619 | W16: 9 | X16: 407 | Y16: 3105.700147 | AA16: 2014-08-01 | AB16: 36649 | AC16: =SUM(T5:T16) -> 14483 | AD16: 198 | AE16: 4087 | AF16: 40 | AG16: 2258 | AI16: 2014-08-01 | AJ16: 4045 | AK16: 1903 | AL16: 35 | AM16: 619 | AN16: 9 | AO16: 407 | AP16: 3105.700147
A17: 2021-01-01 | B17: 15331 | E17: 2021-01-01 | F17: 4663.603322 | I17: 2020-07-01 | J17: 39916 | K17: 1930 | L17: 199 | M17: 1188 | N17: 2679 | O17: 45912 | R17: 2014-09-01 | S17: 4550 | T17: 2145 | U17: 54 | V17: 705 | W17: 9 | X17: 481 | Y17: 3220.617484 | AA17: 2014-09-01 | AB17: 40280 | AC17: =SUM(T6:T17) -> 16575 | AD17: 252 | AE17: 4738 | AF17: 49 | AG17: 2737 | AI17: 2014-09-01 | AJ17: 4584 | AK17: 2145 | AL17: 54 | AM17: 705 | AN17: 9 | AO17: 481 | AP17: 3220.617484
A18: 2021-02-01 | B18: =VLOOKUP(A18,tblPrevious12[#All],2,FALSE) -> 14860 | E18: 2021-02-01 | F18: 4719.332332 | I18: 2020-08-01 | J18: 37522 | K18: 1781 | L18: 119 | M18: 1094 | N18: 2425 | O18: 42941 | R18: 2014-10-01 | S18: 5060 | T18: 2268 | U18: 60 | V18: 804 | W18: 15 | X18: 548 | Y18: 3327.281514 | AA18: 2014-10-01 | AB18: 43468 | AC18: =SUM(T7:T18) -> 18522 | AD18: 312 | AE18: 5408 | AF18: 64 | AG18: 3269 | AI18: 2014-10-01 | AJ18: 5108 | AK18: 2268 | AL18: 60 | AM18: 804 | AN18: 15 | AO18: 548 | AP18: 3327.281514
E19: Grand Total | F19: 56767.53388 | I19: 2020-09-01 | J19: 44540 | K19: 2225 | L19: 208 | M19: 1423 | N19: 3218 | O19: 51614 | R19: 2014-11-01 | S19: 4293 | T19: 2101 | U19: 44 | V19: 730 | W19: 22 | X19: 566 | Y19: 3242.357314 | AA19: 2014-11-01 | AB19: 45515 | AC19: =SUM(T8:T19) -> 19990 | AD19: 355 | AE19: 5979 | AF19: 86 | AG19: 3806 | AI19: 2014-11-01 | AJ19: 4333 | AK19: 2101 | AL19: 44 | AM19: 730 | AN19: 22 | AO19: 566 | AP19: 3242.357314
I20: 2020-10-01 | J20: 45389 | K20: 2132 | L20: 188 | M20: 1299 | N20: 3335 | O20: 52343 | R20: 2014-12-01 | S20: 3669 | T20: 2202 | U20: 62 | V20: 806 | W20: 10 | X20: 565 | Y20: 3324.729345 | AA20: 2014-12-01 | AB20: 47201 | AC20: =SUM(T9:T20) -> 21370 | AD20: 411 | AE20: 6619 | AF20: 96 | AG20: 4324 | AI20: 2014-12-01 | AJ20: 3714 | AK20: 2202 | AL20: 62 | AM20: 806 | AN20: 10 | AO20: 565 | AP20: 3324.729345
I21: 2020-11-01 | J21: 41998 | K21: 1747 | L21: 153 | M21: 1138 | N21: 3106 | O21: 48142 | R21: 2015-01-01 | S21: 4484 | T21: 2034 | U21: 48 | V21: 778 | W21: 22 | X21: 606 | Y21: 3382.226699 | AA21: 2015-01-01 | AB21: 48503 | AC21: =SUM(T10:T21) -> 22291 | AD21: 454 | AE21: 7133 | AF21: 118 | AG21: 4820 | AI21: 2015-01-01 | AJ21: 4526 | AK21: 2034 | AL21: 48 | AM21: 778 | AN21: 22 | AO21: 606 | AP21: 3382.226699
B22: =SUBTOTAL(9,B24:B33) -> 70627 | E22: CNF Sent Monthly Volumes | I22: 2020-12-01 | J22: 35772 | K22: 1463 | L22: 139 | M22: 858 | N22: 2306 | O22: 40538 | R22: 2015-02-01 | S22: 4689 | T22: 1712 | U22: 41 | V22: 793 | W22: 20 | X22: 670 | Y22: 3301.269223 | AA22: 2015-02-01 | AB22: 50032 | AC22: =SUM(T11:T22) -> 22942 | AD22: 485 | AE22: 7622 | AF22: 136 | AG22: 5345 | AI22: 2015-02-01 | AJ22: 4741 | AK22: 1712 | AL22: 41 | AM22: 793 | AN22: 20 | AO22: 670 | AP22: 3301.269223
A23: Exit Process Reason | B23: Total | I23: 2021-01-01 | J23: 37685 | K23: 1075 | L23: 245 | M23: 1379 | N23: 2805 | O23: 43189 | R23: 2015-03-01 | S23: 4985 | T23: 2420 | U23: 56 | V23: 920 | W23: 25 | X23: 792 | Y23: 3425.002739 | AA23: 2015-03-01 | AB23: 51458 | AC23: =SUM(T12:T23) -> 23871 | AD23: 525 | AE23: 8206 | AF23: 160 | AG23: 5959 | AI23: 2015-03-01 | AJ23: 5059 | AK23: 2420 | AL23: 56 | AM23: 920 | AN23: 25 | AO23: 792 | AP23: 3425.002739
A24: Other | B24: 30548 | E24: DatePeriod | F24: ClaimType | G24: ClaimCount | I24: 2021-02-01 | J24: 33533 | K24: 1671 | L24: 161 | M24: 1502 | N24: 1894 | O24: 38761 | R24: 2015-04-01 | S24: 4220 | T24: 2089 | U24: 52 | V24: 881 | W24: 22 | X24: 704 | Y24: 3453.663906 | AA24: 2015-04-01 | AB24: 52148 | AC24: =SUM(T13:T24) -> 24362 | AD24: 554 | AE24: 8653 | AF24: 174 | AG24: 6450 | AI24: 2015-04-01 | AJ24: 4283 | AK24: 2089 | AL24: 52 | AM24: 881 | AN24: 22 | AO24: 704 | AP24: 3453.663906
A25: Claim requires further investigation | B25: 26131 | E25: 2019-12-01 | F25: RTA | G25: 39231 | I25: Grand Total | J25: 445306 | K25: 21349 | L25: 2192 | M25: 14860 | N25: 31522 | O25: 515229 | R25: 2015-05-01 | S25: 4155 | T25: 2031 | U25: 58 | V25: 809 | W25: 25 | X25: 614 | Y25: 3457.909657 | AA25: 2015-05-01 | AB25: 52660 | AC25: =SUM(T14:T25) -> 24751 | AD25: 585 | AE25: 9022 | AF25: 194 | AG25: 6773 | AI25: 2015-05-01 | AJ25: 4222 | AK25: 2031 | AL25: 58 | AM25: 809 | AN25: 25 | AO25: 614 | AP25: 3457.909657
A26: Duplicated claim | B26: 5892 | E26: 2020-01-01 | F26: RTA | G26: 60003 | R26: 2015-06-01 | S26: 4622 | T26: 2297 | U26: 72 | V26: 982 | W26: 43 | X26: 781 | Y26: 3544.529884 | AA26: 2015-06-01 | AB26: 53356 | AC26: =SUM(T15:T26) -> 25210 | AD26: 621 | AE26: 9472 | AF26: 232 | AG26: 7174 | AI26: 2015-06-01 | AJ26: 4697 | AK26: 2297 | AL26: 72 | AM26: 982 | AN26: 43 | AO26: 781 | AP26: 3544.529884
A27: Value of claim exceeds the upper limit | B27: 3563 | E27: 2020-02-01 | F27: RTA | G27: 55459 | R27: 2015-07-01 | S27: 4955 | T27: 2396 | U27: 61 | V27: 961 | W27: 37 | X27: 770 | Y27: 3533.73222 | AA27: 2015-07-01 | AB27: 53692 | AC27: =SUM(T16:T27) -> 25598 | AD27: 643 | AE27: 9788 | AF27: 259 | AG27: 7504 | AI27: 2015-07-01 | AJ27: 5042 | AK27: 2396 | AL27: 61 | AM27: 961 | AN27: 37 | AO27: 770 | AP27: 3533.73222
A28: Withdrawal of claim | B28: 1679 | E28: 2020-03-01 | F28: RTA | G28: 49232 | R28: 2015-08-01 | S28: 4228 | T28: 2113 | U28: 65 | V28: 938 | W28: 30 | X28: 720 | Y28: 3599.98575 | AA28: 2015-08-01 | AB28: 53910 | AC28: =SUM(T17:T28) -> 25808 | AD28: 673 | AE28: 10107 | AF28: 280 | AG28: 7817 | AI28: 2015-08-01 | AJ28: 4289 | AK28: 2113 | AL28: 65 | AM28: 938 | AN28: 30 | AO28: 720 | AP28: 3599.98575
A29: Incomplete information provided on CNF | B29: 1631 | E29: 2020-04-01 | F29: RTA | G29: 24499 | R29: 2015-09-01 | S29: 4489 | T29: 2356 | U29: 65 | V29: 964 | W29: 22 | X29: 718 | Y29: 3670.907423 | AA29: 2015-09-01 | AB29: 53849 | AC29: =SUM(T18:T29) -> 26019 | AD29: 684 | AE29: 10366 | AF29: 293 | AG29: 8054 | AI29: 2015-09-01 | AJ29: 4607 | AK29: 2356 | AL29: 65 | AM29: 964 | AN29: 22 | AO29: 718 | AP29: 3670.907423
A30: Claim is too complex for process | B30: 730 | E30: 2020-05-01 | F30: RTA | G30: 22866 | R30: 2015-10-01 | S30: 4408 | T30: 2220 | U30: 66 | V30: 859 | W30: 27 | X30: 714 | Y30: 3798.056442 | AA30: 2015-10-01 | AB30: 53197 | AC30: =SUM(T19:T30) -> 25971 | AD30: 690 | AE30: 10421 | AF30: 305 | AG30: 8220 | AI30: 2015-10-01 | AJ30: 4508 | AK30: 2220 | AL30: 66 | AM30: 859 | AN30: 27 | AO30: 714 | AP30: 3798.056442
A31: Value of claim below ú1,000 | B31: 326 | E31: 2020-06-01 | F31: RTA | G31: 32354 | R31: 2015-11-01 | S31: 4277 | T31: 2175 | U31: 73 | V31: 936 | W31: 34 | X31: 782 | Y31: 3849.727289 | AA31: 2015-11-01 | AB31: 53181 | AC31: =SUM(T20:T31) -> 26045 | AD31: 719 | AE31: 10627 | AF31: 317 | AG31: 8436 | AI31: 2015-11-01 | AJ31: 4373 | AK31: 2175 | AL31: 73 | AM31: 936 | AN31: 34 | AO31: 782 | AP31: 3849.727289
A32: Withdrawal of offer | B32: 96 | E32: 2020-07-01 | F32: RTA | G32: 39916 | R32: 2015-12-01 | S32: 3343 | T32: 2128 | U32: 80 | V32: 912 | W32: 48 | X32: 715 | Y32: 3735.62516 | AA32: 2015-12-01 | AB32: 52855 | AC32: =SUM(T21:T32) -> 25971 | AD32: 737 | AE32: 10733 | AF32: 355 | AG32: 8586 | AI32: 2015-12-01 | AJ32: 3437 | AK32: 2128 | AL32: 80 | AM32: 912 | AN32: 48 | AO32: 715 | AP32: 3735.62516
A33: Interim payment for child claimant | B33: 31 | E33: 2020-08-01 | F33: RTA | G33: 37522 | R33: 2016-01-01 | S33: 3879 | T33: 1969 | U33: 76 | V33: 892 | W33: 34 | X33: 632 | Y33: 3785.194667 | AA33: 2016-01-01 | AB33: 52250 | AC33: =SUM(T22:T33) -> 25906 | AD33: 765 | AE33: 10847 | AF33: 367 | AG33: 8612 | AI33: 2016-01-01 | AJ33: 4002 | AK33: 1969 | AL33: 76 | AM33: 892 | AN33: 34 | AO33: 632 | AP33: 3785.194667
E34: 2020-09-01 | F34: RTA | G34: 44540 | R34: 2016-02-01 | S34: 4149 | T34: 1715 | U34: 70 | V34: 819 | W34: 37 | X34: 697 | Y34: 3956.956011 | AA34: 2016-02-01 | AB34: 51710 | AC34: =SUM(T23:T34) -> 25909 | AD34: 794 | AE34: 10873 | AF34: 384 | AG34: 8639 | AI34: 2016-02-01 | AJ34: 4287 | AK34: 1715 | AL34: 70 | AM34: 819 | AN34: 37 | AO34: 697 | AP34: 3956.956011
E35: 2020-10-01 | F35: RTA | G35: 45389 | R35: 2016-03-01 | S35: 4288 | T35: 2180 | U35: 74 | V35: 900 | W35: 35 | X35: 775 | Y35: 3939.095987 | AA35: 2016-03-01 | AB35: 51013 | AC35: =SUM(T24:T35) -> 25669 | AD35: 812 | AE35: 10853 | AF35: 394 | AG35: 8622 | AI35: 2016-03-01 | AJ35: 4445 | AK35: 2180 | AL35: 74 | AM35: 900 | AN35: 35 | AO35: 775 | AP35: 3939.095987
E36: 2020-11-01 | F36: RTA | G36: 41998 | R36: 2016-04-01 | S36: 4142 | T36: 2093 | U36: 93 | V36: 998 | W36: 39 | X36: 778 | Y36: 3994.207737 | AA36: 2016-04-01 | AB36: 50935 | AC36: =SUM(T25:T36) -> 25673 | AD36: 853 | AE36: 10970 | AF36: 411 | AG36: 8696 | AI36: 2016-04-01 | AJ36: 4292 | AK36: 2093 | AL36: 93 | AM36: 998 | AN36: 39 | AO36: 778 | AP36: 3994.207737
E37: 2020-12-01 | F37: RTA | G37: 35772 | R37: 2016-05-01 | S37: 3957 | T37: 2022 | U37: 70 | V37: 868 | W37: 36 | X37: 706 | Y37: 3829.424093 | AA37: 2016-05-01 | AB37: 50737 | AC37: =SUM(T26:T37) -> 25664 | AD37: 865 | AE37: 11029 | AF37: 422 | AG37: 8788 | AI37: 2016-05-01 | AJ37: 4115 | AK37: 2022 | AL37: 70 | AM37: 868 | AN37: 36 | AO37: 706 | AP37: 3829.424093
E38: 2021-01-01 | F38: RTA | G38: 37685 | R38: 2016-06-01 | S38: 3323 | T38: 2071 | U38: 104 | V38: 1019 | W38: 57 | X38: 700 | Y38: 4012.5146 | AA38: 2016-06-01 | AB38: 49438 | AC38: =SUM(T27:T38) -> 25438 | AD38: 897 | AE38: 11066 | AF38: 436 | AG38: 8707 | AI38: 2016-06-01 | AJ38: 3492 | AK38: 2071 | AL38: 104 | AM38: 1019 | AN38: 57 | AO38: 700 | AP38: 4012.5146
E39: 2021-02-01 | F39: RTA | G39: 33533 | R39: 2016-07-01 | S39: 3259 | T39: 1663 | U39: 86 | V39: 805 | W39: 51 | X39: 661 | Y39: 3978.009334 | AA39: 2016-07-01 | AB39: 47742 | AC39: =SUM(T28:T39) -> 24705 | AD39: 922 | AE39: 10910 | AF39: 450 | AG39: 8598 | AI39: 2016-07-01 | AJ39: 3412 | AK39: 1663 | AL39: 86 | AM39: 805 | AN39: 51 | AO39: 661 | AP39: 3978.009334
E40: 2019-12-01 | G40: 1975 | R40: 2016-08-01 | S40: 4104 | T40: 1290 | U40: 54 | V40: 595 | W40: 28 | X40: 525 | Y40: 4361.622838 | AA40: 2016-08-01 | AB40: 47618 | AC40: =SUM(T29:T40) -> 23882 | AD40: 911 | AE40: 10567 | AF40: 448 | AG40: 8403 | AI40: 2016-08-01 | AJ40: 4289 | AK40: 1290 | AL40: 54 | AM40: 595 | AN40: 28 | AO40: 525 | AP40: 4361.622838
E41: 2020-01-01 | G41: 3643 | R41: 2016-09-01 | S41: 4211 | T41: 2104 | U41: 98 | V41: 1002 | W41: 64 | X41: 637 | Y41: 4278.072794 | AA41: 2016-09-01 | AB41: 47340 | AC41: =SUM(T30:T41) -> 23630 | AD41: 944 | AE41: 10605 | AF41: 490 | AG41: 8322 | AI41: 2016-09-01 | AJ41: 4403 | AK41: 2104 | AL41: 98 | AM41: 1002 | AN41: 64 | AO41: 641 | AP41: 4287.550733
E42: 2020-02-01 | G42: 3690 | R42: 2016-10-01 | S42: 3776 | T42: 1984 | U42: 56 | V42: 973 | W42: 57 | X42: 651 | Y42: 3820.752887 | AA42: 2016-10-01 | AB42: 46708 | AC42: =SUM(T31:T42) -> 23394 | AD42: 934 | AE42: 10719 | AF42: 520 | AG42: 8259 | AI42: 2016-10-01 | AJ42: 4014 | AK42: 1984 | AL42: 56 | AM42: 973 | AN42: 57 | AO42: 652 | AP42: 3817.960322
E43: 2020-03-01 | G43: 3460 | R43: 2016-11-01 | S43: 3878 | T43: 2112 | U43: 75 | V43: 936 | W43: 72 | X43: 667 | Y43: 4062.983868 | AA43: 2016-11-01 | AB43: 46309 | AC43: =SUM(T32:T43) -> 23331 | AD43: 936 | AE43: 10719 | AF43: 558 | AG43: 8144 | AI43: 2016-11-01 | AJ43: 4247 | AK43: 2112 | AL43: 75 | AM43: 936 | AN43: 72 | AO43: 675 | AP43: 4087.750696
E44: 2020-04-01 | G44: 2241 | R44: 2016-12-01 | S44: 2847 | T44: 1858 | U44: 71 | V44: 784 | W44: 61 | X44: 560 | Y44: 3897.542267 | AA44: 2016-12-01 | AB44: 45813 | AC44: =SUM(T33:T44) -> 23061 | AD44: 927 | AE44: 10591 | AF44: 571 | AG44: 7989 | AI44: 2016-12-01 | AJ44: 3176 | AK44: 1858 | AL44: 71 | AM44: 784 | AN44: 61 | AO44: 574 | AP44: 3893.909703
E45: 2020-05-01 | G45: 1818 | R45: 2017-01-01 | S45: 3543 | T45: 1800 | U45: 64 | V45: 915 | W45: 57 | X45: 649 | Y45: 4093.73077 | AA45: 2017-01-01 | AB45: 45477 | AC45: =SUM(T34:T45) -> 22892 | AD45: 915 | AE45: 10614 | AF45: 594 | AG45: 8006 | AI45: 2017-01-01 | AJ45: 3993 | AK45: 1800 | AL45: 64 | AM45: 915 | AN45: 57 | AO45: 666 | AP45: 4096.533438
E46: 2020-06-01 | G46: 2235 | R46: 2017-02-01 | S46: 3668 | T46: 1537 | U46: 72 | V46: 760 | W46: 63 | X46: 635 | Y46: 4075.356362 | AA46: 2017-02-01 | AB46: 44996 | AC46: =SUM(T35:T46) -> 22714 | AD46: 917 | AE46: 10555 | AF46: 620 | AG46: 7944 | AI46: 2017-02-01 | AJ46: 4102 | AK46: 1537 | AL46: 72 | AM46: 760 | AN46: 63 | AO46: 659 | AP46: 4069.978133
E47: 2020-07-01 | G47: 2679 | R47: 2017-03-01 | S47: 4077 | T47: 2134 | U47: 48 | V47: 1057 | W47: 69 | X47: 735 | Y47: 4036.743469 | AA47: 2017-03-01 | AB47: =SUM(S36:S47) -> 44785 | AC47: =SUM(T36:T47) -> 22668 | AD47: 891 | AE47: 10712 | AF47: 654 | AG47: 7904 | AI47: 2017-03-01 | AJ47: 4546 | AK47: 2134 | AL47: 48 | AM47: 1057 | AN47: 69 | AO47: 763 | AP47: 4015.210812
E48: 2020-08-01 | G48: 2425 | R48: 2017-04-01 | S48: 3018 | T48: 1640 | U48: 60 | V48: 723 | W48: 54 | X48: 594 | Y48: 4026.960319 | AA48: 2017-04-01 | AB48: 43661 | AC48: =SUM(T37:T48) -> 22215 | AD48: 858 | AE48: 10437 | AF48: 669 | AG48: 7720 | AI48: 2017-04-01 | AJ48: 3367 | AK48: 1640 | AL48: 60 | AM48: 723 | AN48: 54 | AO48: 617 | AP48: 4083.945591
E49: 2020-09-01 | G49: 3218 | R49: 2017-05-01 | S49: 3682 | T49: 1903 | U49: 57 | V49: 921 | W49: 63 | X49: 611 | Y49: 4087.620114 | AA49: 2017-05-01 | AB49: 43386 | AC49: =SUM(T38:T49) -> 22096 | AD49: 845 | AE49: 10490 | AF49: 696 | AG49: 7625 | AI49: 2017-05-01 | AJ49: 4078 | AK49: 1903 | AL49: 57 | AM49: 921 | AN49: 63 | AO49: 627 | AP49: 4107.943508
E50: 2020-10-01 | G50: 3335 | R50: 2017-06-01 | S50: 3569 | T50: 1934 | U50: 63 | V50: 950 | W50: 90 | X50: 612 | Y50: 4227.066928 | AA50: 2017-06-01 | AB50: 43632 | AC50: =SUM(T39:T50) -> 21959 | AD50: 804 | AE50: 10421 | AF50: 729 | AG50: 7537 | AI50: 2017-06-01 | AJ50: 3973 | AK50: 1934 | AL50: 63 | AM50: 950 | AN50: 90 | AO50: 628 | AP50: 4217.261082
E51: 2020-11-01 | G51: 3106 | R51: 2017-07-01 | S51: 3172 | T51: 1813 | U51: 52 | V51: 818 | W51: 47 | X51: 597 | Y51: 4145.169463 | AA51: 2017-07-01 | AB51: 43545 | AC51: =SUM(T40:T51) -> 22109 | AD51: 770 | AE51: 10434 | AF51: 725 | AG51: 7473 | AI51: 2017-07-01 | AJ51: 3518 | AK51: 1813 | AL51: 52 | AM51: 818 | AN51: 47 | AO51: 618 | AP51: 4173.323834
E52: 2020-12-01 | G52: 2306 | R52: 2017-08-01 | S52: 3521 | T52: 1707 | U52: 60 | V52: 870 | W52: 79 | X52: 642 | Y52: 3989.100015 | AA52: 2017-08-01 | AB52: 42962 | AC52: =SUM(T41:T52) -> 22526 | AD52: 776 | AE52: 10709 | AF52: 776 | AG52: 7590 | AI52: 2017-08-01 | AJ52: 3963 | AK52: 1707 | AL52: 60 | AM52: 870 | AN52: 79 | AO52: 661 | AP52: 4001.10708
E53: 2021-01-01 | G53: 2805 | R53: 2017-09-01 | S53: 3239 | T53: 1662 | U53: 57 | V53: 842 | W53: 95 | X53: 578 | Y53: 4148.250034 | AA53: 2017-09-01 | AB53: 41990 | AC53: =SUM(T42:T53) -> 22084 | AD53: 735 | AE53: 10549 | AF53: 807 | AG53: 7531 | AI53: 2017-09-01 | AJ53: 3646 | AK53: 1662 | AL53: 57 | AM53: 842 | AN53: 95 | AO53: 591 | AP53: 4158.863824
E54: 2021-02-01 | G54: 1894 | R54: 2017-10-01 | S54: 3717 | T54: 1787 | U54: 71 | V54: 949 | W54: 81 | X54: 672 | Y54: 4132.316845 | AA54: 2017-10-01 | AB54: 41931 | AC54: =SUM(T43:T54) -> 21887 | AD54: 750 | AE54: 10525 | AF54: 831 | AG54: 7552 | AI54: 2017-10-01 | AJ54: 4163 | AK54: 1787 | AL54: 71 | AM54: 949 | AN54: 81 | AO54: 690 | AP54: 4120.183942
E55: 2019-12-01 | F55: EL | G55: 1173 | R55: 2017-11-01 | S55: 3674 | T55: 1907 | U55: 63 | V55: 919 | W55: 81 | X55: 657 | Y55: 4371.40417 | AA55: 2017-11-01 | AB55: 41727 | AC55: =SUM(T44:T55) -> 21682 | AD55: 738 | AE55: 10508 | AF55: 840 | AG55: 7542 | AI55: 2017-11-01 | AJ55: 4149 | AK55: 1907 | AL55: 63 | AM55: 919 | AN55: 81 | AO55: 674 | AP55: 4381.136706
E56: 2020-01-01 | F56: EL | G56: 2035 | R56: 2017-12-01 | S56: 2474 | T56: 1680 | U56: 48 | V56: 749 | W56: 70 | X56: 465 | Y56: 4270.684688 | AA56: 2017-12-01 | AB56: 41354 | AC56: =SUM(T45:T56) -> 21504 | AD56: 715 | AE56: 10473 | AF56: 849 | AG56: 7447 | AI56: 2017-12-01 | AJ56: 2747 | AK56: 1680 | AL56: 48 | AM56: 749 | AN56: 70 | AO56: 475 | AP56: 4322.565726
E57: 2020-02-01 | F57: EL | G57: 1973 | R57: 2018-01-01 | S57: 3758 | T57: 1872 | U57: 38 | V57: 817 | W57: 86 | X57: 628 | Y57: 4307.664108 | AA57: 2018-01-01 | AB57: 41569 | AC57: =SUM(T46:T57) -> 21576 | AD57: 689 | AE57: 10375 | AF57: 878 | AG57: 7426 | AI57: 2018-01-01 | AJ57: 4234 | AK57: 1872 | AL57: 38 | AM57: 817 | AN57: 86 | AO57: 641 | AP57: 4332.001653
E58: 2020-03-01 | F58: EL | G58: 1798 | R58: 2018-02-01 | S58: 3508 | T58: 1484 | U58: 34 | V58: 732 | W58: 79 | X58: 540 | Y58: 4220.811222 | AA58: 2018-02-01 | AB58: 41409 | AC58: =SUM(T47:T58) -> 21523 | AD58: 651 | AE58: 10347 | AF58: 894 | AG58: 7331 | AI58: 2018-02-01 | AJ58: 3938 | AK58: 1484 | AL58: 34 | AM58: 732 | AN58: 79 | AO58: 548 | AP58: 4215.580401
E59: 2020-04-01 | F59: EL | G59: 1215 | R59: 2018-03-01 | S59: 3505 | T59: 1918 | U59: 54 | V59: 888 | W59: 80 | X59: 608 | Y59: 4122.684243 | AA59: 2018-03-01 | AB59: 40837 | AC59: =SUM(T48:T59) -> 21307 | AD59: 657 | AE59: 10178 | AF59: 905 | AG59: 7204 | AI59: 2018-03-01 | AJ59: 3929 | AK59: 1918 | AL59: 54 | AM59: 888 | AN59: 80 | AO59: 630 | AP59: 4155.211142
E60: 2020-05-01 | F60: EL | G60: 902 | R60: 2018-04-01 | S60: 3466 | T60: 1769 | U60: 66 | V60: 818 | W60: 77 | X60: 611 | Y60: 4136.082536 | AA60: 2018-04-01 | AB60: 41285 | AC60: =SUM(T49:T60) -> 21436 | AD60: 663 | AE60: 10273 | AF60: 928 | AG60: 7221 | AI60: 2018-04-01 | AJ60: 3923 | AK60: 1769 | AL60: 66 | AM60: 818 | AN60: 77 | AO60: 621 | AP60: 4176.212045
E61: 2020-06-01 | F61: EL | G61: 1064 | R61: 2018-05-01 | S61: 3407 | T61: 1825 | U61: 61 | V61: 892 | W61: 64 | X61: 633 | Y61: 4077.707488 | AA61: 2018-05-01 | AB61: 41010 | AC61: =SUM(T50:T61) -> 21358 | AD61: 667 | AE61: 10244 | AF61: 929 | AG61: 7243 | AI61: 2018-05-01 | AJ61: 3859 | AK61: 1825 | AL61: 61 | AM61: 892 | AN61: 64 | AO61: 650 | AP61: 4069.728984
E62: 2020-07-01 | F62: EL | G62: 1188 | R62: 2018-06-01 | S62: 3324 | T62: 1902 | U62: 43 | V62: 887 | W62: 104 | X62: 674 | Y62: 4334.980103 | AA62: 2018-06-01 | AB62: 40765 | AC62: =SUM(T51:T62) -> 21326 | AD62: 647 | AE62: 10181 | AF62: 943 | AG62: 7305 | AI62: 2018-06-01 | AJ62: 3761 | AK62: 1902 | AL62: 43 | AM62: 887 | AN62: 104 | AO62: 692 | AP62: 4359.973395
E63: 2020-08-01 | F63: EL | G63: 1094 | R63: 2018-07-01 | S63: 3483 | T63: 1790 | U63: 60 | V63: 902 | W63: 76 | X63: 645 | Y63: 4345.138217 | AA63: 2018-07-01 | AB63: 41076 | AC63: =SUM(T52:T63) -> 21303 | AD63: 655 | AE63: 10265 | AF63: 972 | AG63: 7353 | AI63: 2018-07-01 | AJ63: 3951 | AK63: 1790 | AL63: 60 | AM63: 902 | AN63: 76 | AO63: 661 | AP63: 4312.502496
E64: 2020-09-01 | F64: EL | G64: 1423 | R64: 2018-08-01 | S64: 3380 | T64: 1805 | U64: 53 | V64: 922 | W64: 90 | X64: 610 | Y64: 4209.868688 | AA64: 2018-08-01 | AB64: 40935 | AC64: =SUM(T53:T64) -> 21401 | AD64: 648 | AE64: 10317 | AF64: 983 | AG64: 7321 | AI64: 2018-08-01 | AJ64: 3851 | AK64: 1805 | AL64: 53 | AM64: 922 | AN64: 90 | AO64: 623 | AP64: 4206.621412
E65: 2020-10-01 | F65: EL | G65: 1299 | R65: 2018-09-01 | S65: 3341 | T65: 1661 | U65: 48 | V65: 873 | W65: 65 | X65: 604 | Y65: 4259.899983 | AA65: 2018-09-01 | AB65: 41037 | AC65: =SUM(T54:T65) -> 21400 | AD65: 639 | AE65: 10348 | AF65: 953 | AG65: 7347 | AI65: 2018-09-01 | AJ65: 3786 | AK65: 1661 | AL65: 48 | AM65: 873 | AN65: 65 | AO65: 624 | AP65: 4280.416009
E66: 2020-11-01 | F66: EL | G66: 1138 | R66: 2018-10-01 | S66: 3585 | T66: 1885 | U66: 68 | V66: 1006 | W66: 78 | X66: 638 | Y66: 4332.358777 | AA66: 2018-10-01 | AB66: 40905 | AC66: =SUM(T55:T66) -> 21498 | AD66: 636 | AE66: 10405 | AF66: 950 | AG66: 7313 | AI66: 2018-10-01 | AJ66: 4134 | AK66: 1885 | AL66: 68 | AM66: 1006 | AN66: 78 | AO66: 659 | AP66: 4340.508194
E67: 2020-12-01 | F67: EL | G67: 858 | R67: 2018-11-01 | S67: 3450 | T67: 1841 | U67: 57 | V67: 880 | W67: 73 | X67: 669 | Y67: 4077.574768 | AA67: 2018-11-01 | AB67: 40681 | AC67: =SUM(T56:T67) -> 21432 | AD67: 630 | AE67: 10366 | AF67: 942 | AG67: 7325 | AI67: 2018-11-01 | AJ67: 3949 | AK67: 1841 | AL67: 57 | AM67: 880 | AN67: 73 | AO67: 684 | AP67: 4075.42288
E68: 2021-01-01 | F68: EL | G68: 1379 | R68: 2018-12-01 | S68: 2398 | T68: 1635 | U68: 62 | V68: 746 | W68: 73 | X68: 522 | Y68: 4202.080095 | AA68: 2018-12-01 | AB68: 40605 | AC68: =SUM(T57:T68) -> 21387 | AD68: 644 | AE68: 10363 | AF68: 945 | AG68: 7382 | AI68: 2018-12-01 | AJ68: 2771 | AK68: 1635 | AL68: 62 | AM68: 746 | AN68: 73 | AO68: 537 | AP68: 4212.378547
E69: 2021-02-01 | F69: EL | G69: 1502 | R69: 2019-01-01 | S69: 3209 | T69: 1790 | U69: 57 | V69: 857 | W69: 93 | X69: 693 | Y69: 4176.58808 | AA69: 2019-01-01 | AB69: 40056 | AC69: =SUM(T58:T69) -> 21305 | AD69: 663 | AE69: 10403 | AF69: 952 | AG69: 7447 | AI69: 2019-01-01 | AJ69: 3782 | AK69: 1790 | AL69: 57 | AM69: 857 | AN69: 93 | AO69: 705 | AP69: 4196.348283
E70: 2019-12-01 | F70: ELD | G70: 127 | R70: 2019-02-01 | S70: 3138 | T70: 1346 | U70: 63 | V70: 658 | W70: 75 | X70: 588 | Y70: 4297.375901 | AA70: 2019-02-01 | AB70: 39686 | AC70: =SUM(T59:T70) -> 21167 | AD70: 692 | AE70: 10329 | AF70: 948 | AG70: 7495 | AI70: 2019-02-01 | AJ70: 3699 | AK70: 1346 | AL70: 63 | AM70: 658 | AN70: 75 | AO70: 606 | AP70: 4299.08726
E71: 2020-01-01 | F71: ELD | G71: 218 | R71: 2019-03-01 | S71: 3295 | T71: 1814 | U71: 49 | V71: 796 | W71: 70 | X71: 706 | Y71: 4453.794929 | AA71: 2019-03-01 | AB71: 39476 | AC71: =SUM(T60:T71) -> 21063 | AD71: 687 | AE71: 10237 | AF71: 938 | AG71: 7593 | AI71: 2019-03-01 | AJ71: 3887 | AK71: 1814 | AL71: 49 | AM71: 796 | AN71: 70 | AO71: 728 | AP71: 4496.937733
E72: 2020-02-01 | F72: ELD | G72: 228 | R72: 2019-04-01 | S72: 3208 | T72: 1793 | U72: 45 | V72: 805 | W72: 67 | X72: 678 | Y72: 4448.127345 | AA72: 2019-04-01 | AB72: 39218 | AC72: =SUM(T61:T72) -> 21087 | AD72: 666 | AE72: 10224 | AF72: 928 | AG72: 7660 | AI72: 2019-04-01 | AJ72: 3776 | AK72: 1793 | AL72: 45 | AM72: 805 | AN72: 67 | AO72: 696 | AP72: 4499.870316
E73: 2020-03-01 | F73: ELD | G73: 192 | R73: 2019-05-01 | S73: 3142 | T73: 1900 | U73: 48 | V73: 916 | W73: 79 | X73: 676 | Y73: 4404.398949 | AA73: 2019-05-01 | AB73: 38953 | AC73: =SUM(T62:T73) -> 21162 | AD73: 653 | AE73: 10248 | AF73: 943 | AG73: 7703 | AI73: 2019-05-01 | AJ73: 3724 | AK73: 1900 | AL73: 48 | AM73: 916 | AN73: 79 | AO73: 697 | AP73: 4442.917776
E74: 2020-04-01 | F74: ELD | G74: 262 | R74: 2019-06-01 | S74: 2904 | T74: 1674 | U74: 48 | V74: 883 | W74: 72 | X74: 581 | Y74: 4466.944509 | AA74: 2019-06-01 | AB74: 38533 | AC74: =SUM(T63:T74) -> 20934 | AD74: 658 | AE74: 10244 | AF74: 911 | AG74: 7610 | AI74: 2019-06-01 | AJ74: 3444 | AK74: 1674 | AL74: 48 | AM74: 883 | AN74: 72 | AO74: 593 | AP74: 4511.205328
E75: 2020-05-01 | F75: ELD | G75: 164 | R75: 2019-07-01 | S75: 3400 | T75: 1880 | U75: 46 | V75: 967 | W75: 87 | X75: 670 | Y75: 4403.958716 | AA75: 2019-07-01 | AB75: 38450 | AC75: =SUM(T64:T75) -> 21024 | AD75: 644 | AE75: 10309 | AF75: 922 | AG75: 7635 | AI75: 2019-07-01 | AJ75: 4031 | AK75: 1880 | AL75: 46 | AM75: 968 | AN75: 87 | AO75: 692 | AP75: 4416.631994
E76: 2020-06-01 | F76: ELD | G76: 162 | R76: 2019-08-01 | S76: 2730 | T76: 1693 | U76: 62 | V76: 908 | W76: 76 | X76: 622 | Y76: 4287.673022 | AA76: 2019-08-01 | AB76: 37800 | AC76: =SUM(T65:T76) -> 20912 | AD76: 653 | AE76: 10295 | AF76: 908 | AG76: 7647 | AI76: 2019-08-01 | AJ76: 3573 | AK76: 1693 | AL76: 62 | AM76: 908 | AN76: 76 | AO76: 643 | AP76: 4298.788646
E77: 2020-07-01 | F77: ELD | G77: 199 | R77: 2019-09-01 | S77: 2085 | T77: 1776 | U77: 42 | V77: 850 | W77: 95 | X77: 617 | Y77: 4290.691944 | AA77: 2019-09-01 | AB77: 36544 | AC77: =SUM(T66:T77) -> 21027 | AD77: 647 | AE77: 10272 | AF77: 938 | AG77: 7660 | AI77: 2019-09-01 | AJ77: 3421 | AK77: 1776 | AL77: 42 | AM77: 860 | AN77: 97 | AO77: 635 | AP77: 4307.368488
E78: 2020-08-01 | F78: ELD | G78: 119 | R78: 2019-10-01 | S78: 2326 | T78: 1166 | U78: 36 | V78: 692 | W78: 56 | X78: 627 | Y78: 4344.333125 | AA78: 2019-10-01 | AB78: 35285 | AC78: =SUM(T67:T78) -> 20308 | AD78: 615 | AE78: 9958 | AF78: 916 | AG78: 7649 | AI78: 2019-10-01 | AJ78: 4027 | AK78: 1499 | AL78: 55 | AM78: 945 | AN78: 96 | AO78: 710 | AP78: 4367.018
E79: 2020-09-01 | F79: ELD | G79: 208 | R79: 2019-11-01 | S79: 2155 | T79: 1137 | U79: 38 | V79: 596 | W79: 55 | X79: 614 | Y79: 4559.66482 | AA79: 2019-11-01 | AB79: =SUM(S68:S79) -> 33990 | AC79: =SUM(T68:T79) -> 19604 | AD79: 596 | AE79: 9674 | AF79: 898 | AG79: 7594 | AI79: 2019-11-01 | AJ79: 3796 | AK79: 1554 | AL79: 52 | AM79: 895 | AN79: 87 | AO79: 703 | AP79: 4512.42825
E80: 2020-10-01 | F80: ELD | G80: 188 | R80: 2019-12-01 | S80: 1542 | T80: 1153 | U80: 39 | V80: 519 | W80: 43 | X80: 446 | Y80: 4251.183161 | AA80: 2019-12-01 | AB80: 33134 | AC80: =SUM(T69:T80) -> 19122 | AD80: 573 | AE80: 9447 | AF80: 868 | AG80: 7518 | AI80: 2019-12-01 | AJ80: 2719 | AK80: 1520 | AL80: 59 | AM80: 790 | AN80: 74 | AO80: 542 | AP80: 4269.672158
E81: 2020-11-01 | F81: ELD | G81: 153 | R81: 2020-01-01 | S81: 2035 | T81: 1204 | U81: 39 | V81: 606 | W81: 62 | X81: 511 | Y81: 4403.122544 | AA81: 2020-01-01 | AB81: 31960 | AC81: =SUM(T70:T81) -> 18536 | AD81: 555 | AE81: 9196 | AF81: 837 | AG81: 7336 | AI81: 2020-01-01 | AJ81: 3673 | AK81: 1611 | AL81: 54 | AM81: 948 | AN81: 106 | AO81: 616 | AP81: 4432.807532
E82: 2020-12-01 | F82: ELD | G82: 139 | R82: 2020-02-01 | S82: 1973 | T82: 874 | U82: 24 | V82: 473 | W82: 45 | X82: 530 | Y82: 4469.94649 | AA82: 2020-02-01 | AB82: 30795 | AC82: =SUM(T71:T82) -> 18064 | AD82: 516 | AE82: 9011 | AF82: 807 | AG82: 7278 | AI82: 2020-02-01 | AJ82: 3658 | AK82: 1148 | AL82: 41 | AM82: 688 | AN82: 75 | AO82: 616 | AP82: 4438.777012
E83: 2021-01-01 | F83: ELD | G83: 245 | R83: 2020-03-01 | S83: 1798 | T83: 1230 | U83: 41 | V83: 529 | W83: 49 | X83: 544 | Y83: 4561.282187 | AA83: 2020-03-01 | AB83: 29298 | AC83: =SUM(T72:T83) -> 17480 | AD83: 508 | AE83: 8744 | AF83: 786 | AG83: 7116 | AI83: 2020-03-01 | AJ83: 3424 | AK83: 1662 | AL83: 61 | AM83: 866 | AN83: 90 | AO83: 650 | AP83: 4519.353969
E84: 2021-02-01 | F84: ELD | G84: 161 | R84: 2020-04-01 | S84: 1215 | T84: 1095 | U84: 32 | V84: 535 | W84: 50 | X84: 461 | Y84: 4440.518785 | AA84: 2020-04-01 | AB84: 27305 | AC84: =SUM(T73:T84) -> 16782 | AD84: 495 | AE84: 8474 | AF84: 769 | AG84: 6899 | AI84: 2020-04-01 | AJ84: 2207 | AK84: 1490 | AL84: 50 | AM84: 853 | AN84: 83 | AO84: 563 | AP84: 4459.256944
E85: 2019-12-01 | F85: PL | G85: 1578 | R85: 2020-05-01 | S85: 902 | T85: 782 | U85: 20 | V85: 352 | W85: 29 | X85: 356 | Y85: 4845.878286 | AA85: 2020-05-01 | AB85: 25065 | AC85: =SUM(T74:T85) -> 15664 | AD85: 467 | AE85: 7910 | AF85: 719 | AG85: 6579 | AI85: 2020-05-01 | AJ85: 1650 | AK85: 1065 | AL85: 39 | AM85: 549 | AN85: 54 | AO85: 448 | AP85: 4698.719553
E86: 2020-01-01 | F86: PL | G86: 2754 | R86: 2020-06-01 | S86: 1064 | T86: 654 | U86: 22 | V86: 326 | W86: 33 | X86: 378 | Y86: 4815.421005 | AA86: 2020-06-01 | AB86: =SUM(S75:S86) -> 23225 | AC86: 14644 | AD86: 441 | AE86: 7353 | AF86: 680 | AG86: 6376 | AI86: 2020-06-01 | AJ86: 1976 | AK86: 846 | AL86: 36 | AM86: 524 | AN86: 72 | AO86: 468 | AP86: 4892.872094
E87: 2020-02-01 | F87: PL | G87: 2645 | R87: 2020-07-01 | S87: 1188 | T87: 645 | U87: 30 | V87: 380 | W87: 36 | X87: 324 | Y87: 4834.003425 | AA87: 2020-07-01 | AB87: =SUM(S76:S87) -> 21013 | AC87: 13409 | AD87: 425 | AE87: 6766 | AF87: 629 | AG87: 6030 | AI87: 2020-07-01 | AJ87: 2293 | AK87: 819 | AL87: 41 | AM87: 535 | AN87: 57 | AO87: 374 | AP87: 4706.51901
E88: 2020-03-01 | F88: PL | G88: 2586 | R88: 2020-08-01 | S88: 1094 | T88: 657 | U88: 20 | V88: 311 | W88: 27 | X88: 231 | Y88: 4532.266926 | AA88: 2020-08-01 | AB88: =SUM(S77:S88) -> 19377 | AC88: =SUM(T77:T88) -> 12373 | AD88: =SUM(U77:U88) -> 383 | AE88: =SUM(V77:V88) -> 6169 | AF88: =SUM(W77:W88) -> 580 | AG88: =SUM(X77:X88) -> 5639 | AI88: 2020-08-01 | AJ88: 1846 | AK88: 798 | AL88: 30 | AM88: 427 | AN88: 44 | AO88: 254 | AP88: 4394.581338
E89: 2020-04-01 | F89: PL | G89: 1703 | R89: 2020-09-01 | S89: 1423 | T89: 709 | U89: 24 | V89: 365 | W89: 41 | X89: 322 | Y89: 5023.864037 | AA89: 2020-09-01 | AB89: =SUM(S78:S89) -> 18715 | AC89: =SUM(T78:T89) -> 11306 | AD89: 365 | AE89: =SUM(V78:V89) -> 5684 | AF89: 526 | AG89: =SUM(X78:X89) -> 5344 | AI89: 2020-09-01 | AJ89: 2625 | AK89: 982 | AL89: 33 | AM89: 536 | AN89: 63 | AO89: 401 | AP89: 4991.541995
E90: 2020-05-01 | F90: PL | G90: 1378 | R90: 2020-10-01 | S90: 1299 | T90: 854 | U90: 15 | V90: 418 | W90: 20 | X90: 327 | Y90: 4979.447675 | AA90: 2020-10-01 | AB90: =SUM(S79:S90) -> 17688 | AC90: 10994 | AD90: 344 | AE90: 5410 | AF90: 490 | AG90: 5044 | AI90: 2020-10-01 | AJ90: 2670 | AK90: 1134 | AL90: 26 | AM90: 659 | AN90: 40 | AO90: 417 | AP90: 4906.445203
E91: 2020-06-01 | F91: PL | G91: 1658 | R91: 2020-11-01 | S91: 1138 | T91: 835 | U91: 18 | V91: 420 | W91: 19 | X91: 346 | Y91: 4808.867023 | AA91: 2020-11-01 | AB91: =SUM(S80:S91) -> 16671 | AC91: 10692 | AD91: 324 | AE91: 5234 | AF91: 454 | AG91: 4776 | AI91: 2020-11-01 | AJ91: 2230 | AK91: 1112 | AL91: 28 | AM91: 638 | AN91: 44 | AO91: 406 | AP91: 4773.720418
E92: 2020-07-01 | F92: PL | G92: 1930 | R92: 2020-12-01 | S92: 858 | T92: 729 | U92: 22 | V92: 336 | W92: 18 | X92: 266 | Y92: 4543.048872 | AA92: 2020-12-01 | AB92: =SUM(S81:S92) -> 15987 | AC92: 10268 | AD92: 307 | AE92: 5051 | AF92: 429 | AG92: 4596 | AI92: 2020-12-01 | AJ92: 1977 | AK92: 980 | AL92: 37 | AM92: 531 | AN92: 45 | AO92: 364 | AP92: 4694.490274
E93: 2020-08-01 | F93: PL | G93: 1781 | R93: 2021-01-01 | S93: 1379 | T93: 725 | U93: 18 | V93: 366 | W93: 25 | X93: 307 | Y93: 4663.603322 | AA93: 2021-01-01 | AB93: =SUM(S82:S93) -> 15331 | AC93: =SUM(T82:T93) -> 9789 | AD93: =SUM(U82:U93) -> 286 | AE93: =SUM(V82:V93) -> 4811 | AF93: =SUM(W82:W93) -> 392 | AG93: =SUM(X82:X93) -> 4392 | AI93: 2021-01-01 | AJ93: 2223 | AK93: 992 | AL93: 26 | AM93: 584 | AN93: 44 | AO93: 383 | AP93: 4551.40919
E94: 2020-09-01 | F94: PL | G94: 2225 | R94: 2021-02-01 | S94: 1502 | T94: 614 | U94: 23 | V94: 380 | W94: 25 | X94: 343 | Y94: 4719.332332 | AA94: 2021-02-01 | AB94: =SUM(S83:S94) -> 14860 | AC94: =SUM(T83:T94) -> 9529 | AD94: =SUM(U83:U94) -> 285 | AE94: =SUM(V83:V94) -> 4718 | AF94: =SUM(W83:W94) -> 372 | AG94: =SUM(X83:X94) -> 4205
E95: 2020-10-01 | F95: PL | G95: 2132
E96: 2020-11-01 | F96: PL | G96: 1747
E97: 2020-12-01 | F97: PL | G97: 1463
E98: 2021-01-01 | F98: PL | G98: 1075
E99: 2021-02-01 | F99: PL | G99: 1671

Sheet Year Calculations (hidden)
A1: Period | B1: CNFs sent | C1: CNFs left at stage 1 | D1: Stage 2 exit | E1: Exit process | F1: Court pack | G1: Settled claims
A2: 2013-14 | B2: =SUM('Backing Sheet Data'!S4:S15) -> 32845 | C2: =SUM('Backing Sheet Data'!T4:T15) -> 12585 | D2: =SUM('Backing Sheet Data'!U4:U15) -> 163 | E2: =SUM('Backing Sheet Data'!V4:V15) -> 3481 | F2: =SUM('Backing Sheet Data'!W4:W15) -> 31 | G2: =SUM('Backing Sheet Data'!X4:X15) -> 1852
A3: 2014-15 | B3: =SUM('Backing Sheet Data'!S16:S27) -> 53692 | C3: =SUM('Backing Sheet Data'!T16:T27) -> 25598 | D3: =SUM('Backing Sheet Data'!U16:U27) -> 643 | E3: =SUM('Backing Sheet Data'!V16:V27) -> 9788 | F3: =SUM('Backing Sheet Data'!W16:W27) -> 259 | G3: =SUM('Backing Sheet Data'!X16:X27) -> 7504
A4: 2015-16 | B4: =SUM('Backing Sheet Data'!S28:S39) -> 47742 | C4: =SUM('Backing Sheet Data'!T28:T39) -> 24705 | D4: =SUM('Backing Sheet Data'!U28:U39) -> 922 | E4: =SUM('Backing Sheet Data'!V28:V39) -> 10910 | F4: =SUM('Backing Sheet Data'!W28:W39) -> 450 | G4: =SUM('Backing Sheet Data'!X28:X39) -> 8598
A5: 2016-17 | B5: =SUM('Backing Sheet Data'!S40:S51) -> 43545 | C5: =SUM('Backing Sheet Data'!T40:T51) -> 22109 | D5: =SUM('Backing Sheet Data'!U40:U51) -> 770 | E5: =SUM('Backing Sheet Data'!V40:V51) -> 10434 | F5: =SUM('Backing Sheet Data'!W40:W51) -> 725 | G5: =SUM('Backing Sheet Data'!X40:X51) -> 7473
A6: 2017-18 | B6: =SUM('Backing Sheet Data'!S52:S63) -> 41076 | C6: =SUM('Backing Sheet Data'!T52:T63) -> 21303 | D6: =SUM('Backing Sheet Data'!U52:U63) -> 655 | E6: =SUM('Backing Sheet Data'!V52:V63) -> 10265 | F6: =SUM('Backing Sheet Data'!W52:W63) -> 972 | G6: =SUM('Backing Sheet Data'!X52:X63) -> 7353
A7: 2018-19 | B7: =SUM('Backing Sheet Data'!S64:S75) -> 38450 | C7: =SUM('Backing Sheet Data'!T64:T75) -> 21024 | D7: =SUM('Backing Sheet Data'!U64:U75) -> 644 | E7: =SUM('Backing Sheet Data'!V64:V75) -> 10309 | F7: =SUM('Backing Sheet Data'!W64:W75) -> 922 | G7: =SUM('Backing Sheet Data'!X64:X75) -> 7635
A8: 2019-20 | B8: =SUM('Backing Sheet Data'!S76:S87) -> 21013 | C8: =SUM('Backing Sheet Data'!T76:T87) -> 13409 | D8: =SUM('Backing Sheet Data'!U76:U87) -> 425 | E8: =SUM('Backing Sheet Data'!V76:V87) -> 6766 | F8: =SUM('Backing Sheet Data'!W76:W87) -> 629 | G8: =SUM('Backing Sheet Data'!X76:X87) -> 6030
A9: 2020-21 | B9: =SUM('Backing Sheet Data'!S88:S99) -> 8693 | C9: =SUM('Backing Sheet Data'!T88:T99) -> 5123 | D9: =SUM('Backing Sheet Data'!U88:U99) -> 140 | E9: =SUM('Backing Sheet Data'!V88:V99) -> 2596 | F9: =SUM('Backing Sheet Data'!W88:W99) -> 175 | G9: =SUM('Backing Sheet Data'!X88:X99) -> 2142
